bitfinex/quotes_BTCUSD_20230120
["timestamp","ask_amount","ask_price","bid_price","bid_amount"]
[1674174385654,0.09013086,21096.0,21095.0,1.12570217]
[1674174385921,0.09013086,21096.0,21095.0,1.43211717]
[1674174386981,0.09013086,21096.0,21095.0,1.50033375]
[1674174387243,0.09013086,21096.0,21095.0,1.85825809]
[1674174387754,0.09013086,21096.0,21095.0,1.50033375]
[1674174388060,0.09013086,21096.0,21095.0,1.19391875]
[1674174388311,0.09013086,21096.0,21095.0,1.14391875]
[1674174389603,0.09013086,21096.0,21095.0,1.14218592]
[1674174389856,0.09013086,21096.0,21095.0,1.14391875]
[1674174390383,0.09013086,21096.0,21095.0,0.71777783]
[1674174390635,0.09013086,21096.0,21095.0,1.10596667]
[1674174391174,0.09013086,21096.0,21095.0,0.71777783]
[1674174391445,0.09013086,21096.0,21095.0,2.02694886]
[1674174391721,0.09013086,21096.0,21095.0,2.34680786]
[1674174392526,0.01513086,21096.0,21095.0,2.34480786]
[1674174392813,0.02013086,21096.0,21095.0,2.36680786]
[1674174393572,0.02013086,21096.0,21095.0,2.37513573]
[1674174393837,0.02013086,21096.0,21095.0,1.10229721]
[1674174394383,0.02013086,21096.0,21095.0,0.62825221]
[1674174394913,0.02013086,21096.0,21095.0,0.62833885]
[1674174395546,0.02013086,21096.0,21095.0,0.62825221]
[1674174395787,0.12365086,21096.0,21095.0,0.62825221]
[1674174396008,0.13215086,21096.0,21095.0,0.62825221]
[1674174396232,0.13215086,21096.0,21095.0,0.262]
[1674174396461,0.12715086,21096.0,21095.0,0.262]
[1674174396903,0.64995869,21096.0,21095.0,0.262]
[1674174397127,0.94995869,21096.0,21095.0,0.262]
[1674174397808,0.64995869,21096.0,21095.0,0.26373283]
[1674174398049,0.07241569,21096.0,21095.0,0.262]
[1674174399241,0.07241569,21096.0,21095.0,0.70179036]
[1674174399242,0.02363086,21096.0,21095.0,0.70179036]
[1674174399897,0.01095306,21097.0,21095.0,0.70187699]
[1674174400123,0.01095306,21097.0,21096.0,0.39398296]
[1674174400347,0.51076161,21098.0,21096.0,0.39398296]
[1674174400651,0.473997,21098.0,21096.0,0.39398296]
[1674174401668,0.005,21097.0,21096.0,0.39398296]
[1674174401954,0.33630086,21098.0,21096.0,0.39398296]
[1674174402250,0.11202,21097.0,21096.0,0.003]
[1674174403577,0.0085,21097.0,21095.0,0.24]
[1674174403835,0.0335,21097.0,21096.0,0.003]
[1674174404938,0.0335,21097.0,21095.0,0.65241931]
[1674174404939,0.0085,21097.0,21095.0,0.65241931]
[1674174405226,0.0135,21097.0,21095.0,0.67941931]
[1674174405480,0.06047619,21097.0,21095.0,0.65241931]
[1674174405738,0.08547619,21097.0,21096.0,0.003]
[1674174406005,0.04597744,21096.0,21095.0,0.24]
[1674174406269,1.30252344,21096.0,21095.0,0.267]
[1674174406784,1.30252344,21096.0,21095.0,0.27]
[1674174407066,1.00252344,21096.0,21095.0,0.24]
[1674174408812,0.956546,21096.0,21095.0,0.24]
[1674174409085,1.020546,21096.0,21095.0,0.6530772]
[1674174412507,0.546523,21096.0,21095.0,0.6530772]
[1674174414031,1.020546,21096.0,21095.0,0.243]
[1674174414294,1.256546,21096.0,21095.0,0.24]
[1674174414553,0.846523,21096.0,21095.0,0.243]
[1674174415068,0.482523,21096.0,21095.0,0.24]
[1674174415341,0.546523,21096.0,21095.0,0.243]
[1674174415604,0.482523,21096.0,21095.0,0.24]
[1674174415854,1.020546,21096.0,21095.0,0.243]
[1674174416385,1.020546,21096.0,21095.0,0.24308663]
[1674174416627,0.546523,21096.0,21095.0,0.243]
[1674174416881,0.482523,21096.0,21095.0,0.24]
[1674174417140,0.546523,21096.0,21095.0,0.243]
[1674174417402,0.956546,21096.0,21095.0,0.24]
[1674174417653,0.0725,21096.0,21095.0,0.243]
[1674174417915,0.58752211,21098.0,21095.0,1.53825641]
[1674174417916,0.11352911,21098.0,21095.0,1.53825641]
[1674174418182,0.064,21096.0,21095.0,1.54125641]
[1674174418432,0.04324757,21098.0,21095.0,1.53825641]
[1674174418689,0.064,21096.0,21095.0,1.06721141]
[1674174419182,0.04324757,21098.0,21095.0,1.06421141]
[1674174419442,0.51722857,21098.0,21095.0,0.59025304]
[1674174419701,0.0085,21097.0,21095.0,0.59025304]
[1674174419971,0.025,21096.0,21095.0,0.59325304]
[1674174420501,0.0085,21097.0,21095.0,0.61725304]
[1674174420763,0.0085,21097.0,21095.0,0.59025304]
[1674174421030,0.025,21096.0,21095.0,0.59325304]
[1674174421287,0.0085,21097.0,21096.0,0.35968633]
[1674174421548,0.0135,21097.0,21096.0,0.35968633]
[1674174421806,0.0085,21097.0,21096.0,0.35968633]
[1674174423362,0.0335,21097.0,21096.0,0.36268633]
[1674174424213,0.3335,21097.0,21096.0,0.003]
[1674174424428,0.08192705,21097.0,21096.0,0.003]
[1674174425162,0.0335,21097.0,21096.0,0.003]
[1674174425941,0.0335,21097.0,21096.0,0.10652]
[1674174426233,0.0335,21097.0,21096.0,0.54499296]
[1674174426857,0.0335,21097.0,21096.0,0.44147296]
[1674174427821,0.0335,21097.0,21096.0,0.44155958]
[1674174428120,0.025,21097.0,21096.0,0.91558258]
[1674174428640,0.025,21097.0,21096.0,0.96558258]
[1674174429158,0.025,21097.0,21096.0,1.30304358]
[1674174429468,0.025,21097.0,21096.0,0.96558258]
[1674174431576,0.75771583,21101.0,21096.0,1.3588909]
[1674174431837,0.52061254,21102.0,21097.0,0.66234876]
[1674174432141,0.473905,21102.0,21098.0,1.30869828]
[1674174432443,0.63615127,21103.0,21099.0,0.0497199]
[1674174432716,0.473899,21102.0,21099.0,0.40547818]
[1674174432989,0.086,21102.0,21099.0,0.5186669]
[1674174433253,0.0085,21101.0,21099.0,0.5186669]
[1674174433524,0.0085,21102.0,21099.0,0.5186669]
[1674174434075,0.0085,21102.0,21099.0,0.40547818]
[1674174434596,0.079,21101.0,21099.0,0.40647818]
[1674174434856,0.079,21101.0,21100.0,0.39578075]
[1674174435115,0.0875,21101.0,21100.0,0.39578075]
[1674174435376,0.13266756,21104.0,21099.0,0.40547818]
[1674174435650,0.008,21102.0,21100.0,1.71063121]
[1674174435931,0.008,21102.0,21100.0,1.70563121]
[1674174436214,0.01913845,21104.0,21100.0,0.76276521]
[1674174436215,0.06639775,21104.0,21100.0,0.76276521]
[1674174436473,0.06639775,21104.0,21101.0,0.523911]
[1674174436732,0.0085,21103.0,21101.0,0.523911]
[1674174437240,0.0085,21103.0,21102.0,0.37505223]
[1674174437502,0.01913845,21104.0,21103.0,0.05]
[1674174438023,0.02763845,21104.0,21103.0,0.05]
[1674174438283,0.03463845,21104.0,21103.0,0.05]
[1674174438571,0.01913845,21104.0,21103.0,0.05]
[1674174438845,0.09813845,21104.0,21103.0,0.001]
[1674174439101,0.14502643,21104.0,21103.0,0.001]
[1674174439368,0.10663845,21104.0,21103.0,0.001]
[1674174440095,1.09758795,21104.0,21103.0,0.001]
[1674174440352,1.67921054,21104.0,21103.0,0.001]
[1674174440621,1.39758795,21104.0,21103.0,0.001]
[1674174440910,1.35432445,21104.0,21103.0,0.001]
[1674174441166,1.05432445,21104.0,21103.0,0.001]
[1674174441432,1.05432445,21104.0,21102.0,0.44718872]
[1674174441689,0.0085,21103.0,21102.0,0.44718872]
[1674174441990,0.482366,21103.0,21102.0,0.44718872]
[1674174442742,0.482366,21103.0,21099.0,0.41150541]
[1674174442744,0.52566379,21103.0,21099.0,0.50966838]
[1674174443004,0.3,21102.0,21100.0,0.33112185]
[1674174443267,0.0085,21101.0,21100.0,0.33112185]
[1674174443529,0.0085,21101.0,21100.0,0.33136479]
[1674174443814,0.0085,21102.0,21100.0,0.33112185]
[1674174444049,0.0085,21102.0,21100.0,0.57112185]
[1674174444306,0.482393,21102.0,21100.0,0.57112185]
[1674174444815,0.489393,21102.0,21100.0,0.58212185]
[1674174445094,0.489393,21102.0,21101.0,0.35057359]
[1674174445350,0.007,21102.0,21101.0,0.35057359]
[1674174445872,0.007,21102.0,21101.0,0.40057359]
[1674174446436,0.07123962,21104.0,21101.0,0.40257359]
[1674174446690,0.017,21102.0,21101.0,0.40257359]
[1674174447454,0.0085,21103.0,21102.0,0.05]
[1674174448494,0.01913845,21104.0,21102.0,0.05]
[1674174448743,0.079,21103.0,21102.0,0.051]
[1674174449013,0.079,21103.0,21102.0,0.998769]
[1674174449257,0.079,21103.0,21102.0,1.67516428]
[1674174449509,0.01913845,21104.0,21102.0,1.67416428]
[1674174449776,0.01913845,21104.0,21102.0,1.35852728]
[1674174450034,0.01913845,21104.0,21103.0,1.15304361]
[1674174450379,0.09813845,21104.0,21103.0,2.15358997]
[1674174450553,0.01913845,21104.0,21103.0,2.15358997]
[1674174450814,0.09013845,21104.0,21103.0,2.15358997]
[1674174451068,0.01913845,21104.0,21103.0,2.15532214]
[1674174451327,0.02613845,21104.0,21103.0,2.62644112]
[1674174451610,0.02613845,21104.0,21103.0,2.60744112]
[1674174451836,0.03313845,21104.0,21103.0,2.62644112]
[1674174452091,0.01913845,21104.0,21103.0,2.60744112]
[1674174452347,0.02613845,21104.0,21103.0,2.62644112]
[1674174452604,0.02613845,21104.0,21103.0,2.17432214]
[1674174452897,0.02613845,21104.0,21103.0,2.60585636]
[1674174453116,0.02613845,21104.0,21103.0,2.58685636]
[1674174453371,0.02613845,21104.0,21103.0,2.60585636]
[1674174453635,0.02613845,21104.0,21103.0,2.17432214]
[1674174455182,0.02613845,21104.0,21103.0,2.15532214]
[1674174455183,0.01913845,21104.0,21103.0,2.15532214]
[1674174455519,0.02613845,21104.0,21103.0,2.17432214]
[1674174458302,0.02613845,21104.0,21103.0,2.60480404]
[1674174458557,0.02613845,21104.0,21103.0,2.17432214]
[1674174459049,0.02613845,21104.0,21103.0,2.54710877]
[1674174459391,0.02613845,21104.0,21103.0,1.18355063]
[1674174459392,0.22045942,21104.0,21103.0,1.18355063]
[1674174459589,0.02613845,21104.0,21103.0,0.86565263]
[1674174460659,0.02613845,21104.0,21103.0,0.86730251]
[1674174463029,0.02613845,21104.0,21103.0,0.86565263]
[1674174463311,0.02613845,21104.0,21103.0,0.39178663]
[1674174464098,0.02613845,21104.0,21103.0,0.39195142]
[1674174464642,0.02613845,21104.0,21103.0,0.39178663]
[1674174464900,0.02604867,21104.0,21103.0,0.39178663]
[1674174465161,0.02604867,21104.0,21103.0,0.39195142]
[1674174466061,0.02604867,21104.0,21103.0,0.91581742]
[1674174467528,0.02604867,21104.0,21103.0,1.22413642]
[1674174467782,0.02604867,21104.0,21103.0,1.5848947]
[1674174468034,0.02604867,21104.0,21103.0,1.22413642]
[1674174468543,0.02604867,21104.0,21103.0,1.22802507]
[1674174469325,0.02604867,21104.0,21103.0,2.17909276]
[1674174469857,0.01904867,21104.0,21103.0,2.16009276]
[1674174470142,0.02604867,21104.0,21103.0,2.20837293]
[1674174470656,0.02604867,21104.0,21103.0,1.88413693]
[1674174470911,0.02604867,21104.0,21103.0,1.33993524]
[1674174470912,0.01904867,21104.0,21103.0,1.33993524]
[1674174471388,0.02604867,21104.0,21103.0,1.35787639]
[1674174472173,0.01904867,21104.0,21103.0,1.34087639]
[1674174472465,0.01904867,21104.0,21103.0,1.35787639]
[1674174472466,0.02604867,21104.0,21103.0,1.35787639]
[1674174473199,0.01904867,21104.0,21103.0,1.34087639]
[1674174473453,0.02604867,21104.0,21103.0,1.35787639]
[1674174475059,0.02604867,21104.0,21103.0,1.35779006]
[1674174475315,0.02604867,21104.0,21103.0,2.04127034]
[1674174475568,0.02604867,21104.0,21103.0,1.68051206]
[1674174475842,0.02604867,21104.0,21103.0,0.93392406]
[1674174478737,0.02604867,21104.0,21103.0,1.40779006]
[1674174479733,0.02604867,21104.0,21103.0,1.35668412]
[1674174479995,0.02604867,21104.0,21103.0,0.88281812]
[1674174480266,0.22036964,21104.0,21103.0,0.017]
[1674174480527,0.29052245,21104.0,21103.0,0.017]
[1674174480794,0.07508899,21104.0,21103.0,0.017]
[1674174481057,1.02277499,21104.0,21103.0,0.017]
[1674174481313,1.02277499,21104.0,21100.0,0.63105026]
[1674174481314,1.01577499,21104.0,21100.0,0.63105026]
[1674174481849,0.0085,21103.0,21100.0,0.63105026]
[1674174482109,0.956254,21103.0,21100.0,0.63105026]
[1674174482365,0.956254,21103.0,21101.0,0.44283148]
[1674174482638,0.956254,21103.0,21102.0,0.44116408]
[1674174483205,0.963254,21103.0,21100.0,0.307]
[1674174483465,1.15057497,21103.0,21100.0,0.64081307]
[1674174483754,0.3,21102.0,21100.0,0.64081307]
[1674174484017,0.04894097,21101.0,21100.0,0.24]
[1674174485080,0.04894097,21101.0,21100.0,0.243]
[1674174485340,0.04894097,21101.0,21100.0,0.24]
[1674174485847,1.02626297,21101.0,21100.0,0.243]
[1674174485850,1.00526297,21101.0,21100.0,0.24]
[1674174486115,1.02626297,21101.0,21100.0,0.243]
[1674174486942,1.32626297,21101.0,21100.0,0.243]
[1674174487159,1.30526297,21101.0,21100.0,0.24]
[1674174487412,1.07826297,21101.0,21100.0,0.242]
[1674174487675,1.07826297,21101.0,21100.0,0.24323361]
[1674174487941,1.00526297,21101.0,21100.0,0.24123361]
[1674174488218,1.00526297,21101.0,21100.0,0.24]
[1674174488481,0.0085,21101.0,21100.0,0.24]
[1674174488747,0.99711119,21103.0,21100.0,0.58471281]
[1674174489008,0.99711119,21103.0,21100.0,0.58615233]
[1674174489009,0.073,21101.0,21100.0,0.58615233]
[1674174489263,0.546911,21101.0,21100.0,0.58615233]
[1674174490026,0.52267613,21102.0,21100.0,0.24]
[1674174490297,0.42147788,21101.0,21100.0,0.242]
[1674174490767,1.29629988,21101.0,21100.0,0.24]
[1674174490769,1.36929988,21101.0,21100.0,0.242]
[1674174491060,1.30479988,21101.0,21100.0,0.235]
[1674174491834,1.30479988,21101.0,21100.0,0.237]
[1674174491835,1.07779988,21101.0,21100.0,0.237]
[1674174492159,1.30479988,21101.0,21100.0,0.235]
[1674174492888,1.07879988,21101.0,21100.0,0.237]
[1674174493143,1.00479988,21101.0,21100.0,0.235]
[1674174493402,1.030322,21101.0,21100.0,0.237]
[1674174493663,1.030322,21101.0,21100.0,0.66031364]
[1674174493944,0.074,21101.0,21100.0,0.66031364]
[1674174494211,0.074,21101.0,21100.0,0.66151358]
[1674174494476,0.074,21101.0,21100.0,0.66031364]
[1674174494787,0.074,21101.0,21100.0,0.237]
[1674174496365,0.0734295,21101.0,21100.0,0.237]
[1674174496895,0.3734295,21101.0,21100.0,0.237]
[1674174499972,0.3634295,21101.0,21100.0,0.237]
[1674174500233,0.8373405,21101.0,21100.0,0.237]
[1674174500497,0.8273405,21101.0,21100.0,0.237]
[1674174500753,1.35627041,21101.0,21100.0,0.237]
[1674174502845,1.3097515,21101.0,21100.0,0.237]
[1674174503115,1.40948863,21101.0,21100.0,0.237]
[1674174503380,1.3597515,21101.0,21100.0,0.237]
[1674174503658,1.47328061,21101.0,21100.0,0.237]
[1674174503929,1.40595113,21101.0,21100.0,0.237]
[1674174504999,1.35595113,21101.0,21100.0,0.237]
[1674174505722,1.05595113,21101.0,21100.0,0.23759245]
[1674174505986,1.05595113,21101.0,21100.0,0.237]
[1674174511703,0.5358405,21101.0,21100.0,0.65071723]
[1674174511916,0.0619295,21101.0,21100.0,0.65071723]
[1674174513734,0.0534295,21101.0,21100.0,0.65071723]
[1674174514291,0.0534295,21101.0,21100.0,0.23759245]
[1674174514528,0.0534295,21101.0,21100.0,0.71152545]
[1674174514803,0.0534295,21101.0,21100.0,1.85506373]
[1674174515839,0.01904867,21104.0,21100.0,1.85306373]
[1674174516106,0.01904867,21104.0,21101.0,0.68182628]
[1674174516447,0.01904867,21104.0,21102.0,0.05]
[1674174516692,0.01904867,21104.0,21101.0,0.83466028]
[1674174516963,0.02304867,21104.0,21101.0,0.473902]
[1674174517716,0.01904867,21104.0,21101.0,0.473902]
[1674174517962,0.02404867,21104.0,21101.0,0.990813]
[1674174518295,0.02404867,21104.0,21102.0,0.4492735]
[1674174518701,0.01904867,21104.0,21102.0,0.4492735]
[1674174518945,0.02404867,21104.0,21102.0,0.4492735]
[1674174519202,0.31904867,21104.0,21102.0,0.4492735]
[1674174519449,0.32404867,21104.0,21102.0,0.4912735]
[1674174520446,0.36361855,21104.0,21102.0,0.4492735]
[1674174520705,0.36361855,21104.0,21102.0,0.4502735]
[1674174520706,0.37561855,21104.0,21102.0,0.4502735]
[1674174522823,0.03104867,21104.0,21102.0,0.4502735]
[1674174523089,0.03104867,21104.0,21103.0,0.05]
[1674174523382,0.03104867,21104.0,21103.0,0.40810077]
[1674174523383,0.03954867,21104.0,21103.0,0.40810077]
[1674174524140,0.07654867,21104.0,21103.0,0.41475828]
[1674174524401,0.06804867,21104.0,21103.0,0.80300086]
[1674174524739,0.06794167,21104.0,21103.0,0.80300086]
[1674174524949,0.06794167,21104.0,21103.0,1.24287658]
[1674174525223,0.06794167,21104.0,21103.0,0.91610858]
[1674174527659,0.06794167,21104.0,21103.0,1.71016858]
[1674174528185,0.06794167,21104.0,21103.0,1.38997458]
[1674174528460,0.06794167,21104.0,21103.0,1.36249028]
[1674174528915,0.06794167,21104.0,21103.0,1.68251028]
[1674174530486,0.06794167,21104.0,21103.0,2.06582262]
[1674174531009,0.06794167,21104.0,21103.0,1.68251028]
[1674174532368,0.01483675,21105.0,21104.0,99.93205833]
[1674174532636,0.01483675,21105.0,21104.0,100.29150611]
[1674174533391,0.01483675,21105.0,21104.0,100.61683411]
[1674174533643,0.01483675,21105.0,21104.0,100.29150611]
[1674174534350,0.01483675,21105.0,21104.0,100.61362911]
[1674174534594,0.01483675,21105.0,21104.0,101.18047211]
[1674174534840,0.01483675,21105.0,21104.0,100.85834911]
[1674174535817,0.01483675,21105.0,21104.0,100.38450611]
[1674174536068,0.01483675,21105.0,21104.0,100.72097466]
[1674174536292,0.01483675,21105.0,21104.0,101.05941166]
[1674174536600,0.01483675,21105.0,21104.0,100.38450611]
[1674174536820,0.01483675,21105.0,21104.0,100.85834911]
[1674174537074,0.01483675,21105.0,21104.0,101.3028803]
[1674174537315,0.01483675,21105.0,21104.0,100.38450611]
[1674174538326,0.01483675,21105.0,21104.0,100.61242311]
[1674174538818,0.01483675,21105.0,21104.0,100.69542311]
[1674174539077,0.01483675,21105.0,21104.0,101.08626611]
[1674174539304,0.01483675,21105.0,21104.0,101.17926611]
[1674174539544,0.01483675,21105.0,21104.0,101.17714344]
[1674174540573,0.01483675,21105.0,21104.0,100.85622644]
[1674174540828,0.01690794,21106.0,21105.0,100.32704586]
[1674174541849,0.01690794,21106.0,21105.0,100.41004586]
[1674174542107,0.01690794,21106.0,21105.0,100.32704586]
[1674174542374,0.01690794,21106.0,21105.0,100.32884765]
[1674174542609,0.01690794,21106.0,21105.0,99.99616325]
[1674174542848,0.01690794,21106.0,21105.0,100.42433036]
[1674174543172,0.01690794,21106.0,21105.0,100.41333036]
[1674174543415,0.01690794,21106.0,21105.0,99.98516325]
[1674174543416,0.34531891,21106.0,21105.0,99.98516325]
[1674174543648,0.15949794,21106.0,21105.0,99.98516325]
[1674174543887,0.02540794,21106.0,21105.0,99.98516325]
[1674174544256,0.02540794,21106.0,21105.0,100.36835939]
[1674174544699,0.02540794,21106.0,21105.0,100.46135939]
[1674174544964,0.02540794,21106.0,21105.0,100.37935939]
[1674174545220,0.02540794,21106.0,21105.0,100.36835939]
[1674174545513,0.97300394,21106.0,21105.0,100.37935939]
[1674174545774,0.97300394,21106.0,21105.0,100.36835939]
[1674174546064,1.27300394,21106.0,21105.0,100.37935939]
[1674174546322,1.27300394,21106.0,21105.0,99.99616325]
[1674174546587,1.42594205,21106.0,21105.0,99.99616325]
[1674174546863,1.31241294,21106.0,21105.0,99.98516325]
[1674174547413,1.27300394,21106.0,21105.0,99.98516325]
[1674174547664,1.27300394,21106.0,21105.0,99.99216325]
[1674174547924,1.27300394,21106.0,21105.0,99.98516325]
[1674174548204,0.97300394,21106.0,21105.0,99.99433254]
[1674174548470,1.27300394,21106.0,21105.0,99.99433254]
[1674174549256,1.27300394,21106.0,21105.0,0.00916929]
[1674174549630,1.27300394,21106.0,21105.0,0.008]
[1674174550091,1.32243003,21106.0,21105.0,0.008]
[1674174550311,1.43595914,21106.0,21105.0,0.008]
[1674174550538,1.60400282,21106.0,21105.0,0.008]
[1674174550828,1.60220385,21106.0,21105.0,0.008]
[1674174551243,1.60950659,21106.0,21105.0,0.008]
[1674174552186,1.43923187,21106.0,21105.0,0.008]
[1674174553261,1.32570276,21106.0,21105.0,0.008]
[1674174554630,0.97300394,21106.0,21105.0,0.20531]
[1674174554823,0.96450394,21106.0,21105.0,0.20531]
[1674174555039,0.49070594,21106.0,21105.0,0.62769969]
[1674174555661,0.01690794,21106.0,21105.0,0.61969969]
[1674174555886,0.01690794,21106.0,21105.0,0.62269969]
[1674174556392,0.01690794,21106.0,21105.0,0.62381344]
[1674174556872,0.01690794,21106.0,21105.0,0.62081344]
[1674174557178,0.01690794,21106.0,21105.0,0.63181344]
[1674174557352,0.01690794,21106.0,21105.0,0.20942375]
[1674174557598,0.01690794,21106.0,21105.0,1.38619287]
[1674174557866,0.01690794,21106.0,21105.0,1.78023233]
[1674174558118,0.01690794,21106.0,21105.0,1.90043153]
[1674174558362,0.01690794,21106.0,21105.0,1.80743153]
[1674174558655,0.01690794,21106.0,21105.0,1.90043153]
[1674174559147,0.01690794,21106.0,21105.0,2.32244779]
[1674174559385,0.01690794,21106.0,21105.0,2.28839565]
[1674174559723,0.01690794,21106.0,21105.0,2.19539565]
[1674174559930,0.01690794,21106.0,21105.0,1.90043153]
[1674174560377,0.01690794,21106.0,21105.0,2.01356684]
[1674174560618,0.01690794,21106.0,21105.0,1.90043153]
[1674174565445,0.01690794,21106.0,21105.0,1.95983752]
[1674174565931,0.01690794,21106.0,21105.0,1.54098375]
[1674174566181,0.01690794,21106.0,21105.0,1.88249402]
[1674174566446,0.01690794,21106.0,21105.0,1.14606575]
[1674174566695,0.01690794,21106.0,21105.0,1.65456608]
[1674174566931,0.01690794,21106.0,21105.0,1.56156608]
[1674174567171,0.01690794,21106.0,21105.0,1.55883575]
[1674174567411,0.01690794,21106.0,21105.0,1.91828353]
[1674174569781,0.01690794,21106.0,21105.0,1.91626122]
[1674174569947,0.01690794,21107.0,21106.0,0.05282289]
[1674174570204,0.01709772,21110.0,21106.0,4.89845628]
[1674174570453,0.01709772,21110.0,21108.0,0.58990226]
[1674174570697,0.01709772,21110.0,21109.0,3.05025247]
[1674174571707,0.01709772,21110.0,21109.0,3.14325247]
[1674174572708,0.01709772,21110.0,21109.0,3.05025247]
[1674174572960,0.01709772,21110.0,21109.0,3.14325247]
[1674174573205,0.01709772,21110.0,21109.0,3.05025247]
[1674174573443,0.01709772,21110.0,21109.0,3.14325247]
[1674174573697,0.01709772,21110.0,21109.0,2.78222204]
[1674174573944,0.01709772,21110.0,21109.0,2.66952147]
[1674174574181,0.01709772,21110.0,21109.0,2.57758488]
[1674174574431,0.21141869,21110.0,21109.0,2.60762329]
[1674174574677,0.21141869,21110.0,21109.0,1.6566906]
[1674174574939,0.01709772,21110.0,21109.0,0.8642806]
[1674174575183,0.01709772,21110.0,21109.0,0.3905496]
[1674174575452,0.01709772,21110.0,21109.0,0.38948619]
[1674174575704,0.01709772,21110.0,21109.0,0.48248619]
[1674174576044,0.01709772,21110.0,21109.0,0.38948619]
[1674174576219,0.01709772,21110.0,21109.0,0.48248619]
[1674174576455,0.05695721,21110.0,21109.0,0.093]
[1674174576948,0.49078672,21111.0,21110.0,0.05454279]
[1674174577197,0.79078672,21111.0,21110.0,0.05454279]
[1674174577445,0.95074881,21111.0,21110.0,0.05454279]
[1674174577692,1.04892379,21111.0,21110.0,0.05454279]
[1674174578189,0.8889617,21111.0,21110.0,0.05454279]
[1674174578445,0.84078672,21111.0,21110.0,0.05454279]
[1674174578676,0.79078672,21111.0,21110.0,0.29454279]
[1674174578925,0.80287751,21111.0,21110.0,0.29454279]
[1674174579178,0.81137751,21111.0,21110.0,0.29454279]
[1674174579691,0.81837751,21111.0,21110.0,0.30154279]
[1674174579950,0.51837751,21111.0,21110.0,0.30154279]
[1674174580466,0.50628672,21111.0,21110.0,0.30154279]
[1674174580982,0.5099812,21111.0,21110.0,0.29454279]
[1674174581224,0.5099812,21111.0,21110.0,0.30154279]
[1674174581225,0.8169812,21111.0,21110.0,0.30154279]
[1674174581470,0.8169812,21111.0,21110.0,0.29454279]
[1674174581719,0.8239812,21111.0,21110.0,0.30154279]
[1674174583515,0.76943841,21111.0,21110.0,0.247]
[1674174584253,0.03319448,21111.0,21110.0,0.247]
[1674174584498,0.0225,21111.0,21110.0,0.247]
[1674174585240,0.0225,21111.0,21110.0,0.24]
[1674174585241,0.0085,21111.0,21110.0,0.24]
[1674174585995,0.0155,21111.0,21110.0,0.247]
[1674174586282,0.0085,21111.0,21110.0,0.24]
[1674174587049,0.0155,21111.0,21110.0,0.247]
[1674174587540,0.007,21111.0,21110.0,0.247]
[1674174587784,0.0288805,21112.0,21110.0,0.24]
[1674174588034,0.007,21111.0,21110.0,0.247]
[1674174588304,0.0288805,21112.0,21110.0,0.24]
[1674174588597,0.007,21111.0,21110.0,0.247]
[1674174588822,0.0288805,21112.0,21110.0,0.24]
[1674174589057,0.007,21111.0,21110.0,0.247]
[1674174589309,0.007,21111.0,21110.0,0.67054044]
[1674174589557,0.02507142,21112.0,21110.0,0.67754044]
[1674174589803,0.01807142,21112.0,21110.0,0.67054044]
[1674174590089,0.02996412,21112.0,21110.0,0.67054044]
[1674174590548,0.02996412,21112.0,21111.0,0.13]
[1674174591292,0.03696412,21112.0,21111.0,0.13]
[1674174591531,0.01807142,21112.0,21111.0,0.13]
[1674174591791,0.0302488,21112.0,21111.0,0.145]
[1674174592044,0.0302488,21112.0,21111.0,0.13]
[1674174592289,0.0372488,21112.0,21111.0,0.137]
[1674174592540,0.0302488,21112.0,21111.0,0.13]
[1674174592778,0.0302488,21112.0,21111.0,0.145]
[1674174593472,0.69309436,21113.0,21110.0,0.67054044]
[1674174593719,0.007,21112.0,21111.0,0.007]
[1674174593985,0.69309436,21113.0,21110.0,0.67054044]
[1674174594235,0.007,21112.0,21111.0,0.007]
[1674174594487,0.69309436,21113.0,21110.0,0.67054044]
[1674174594738,0.21281,21112.0,21111.0,0.007]
[1674174595070,1.153138,21112.0,21110.0,0.24]
[1674174595329,0.3,21111.0,21110.0,0.24]
[1674174595581,1.255872,21111.0,21110.0,0.24]
[1674174595838,1.36940111,21111.0,21110.0,0.24]
[1674174596341,1.53951171,21111.0,21110.0,0.24]
[1674174596595,1.81104467,21111.0,21110.0,0.24]
[1674174596859,1.58946048,21111.0,21110.0,0.247]
[1674174597099,1.58946048,21111.0,21110.0,0.24]
[1674174597100,1.36923437,21111.0,21110.0,0.24]
[1674174597380,1.37123437,21111.0,21110.0,0.248]
[1674174597618,1.65421353,21111.0,21110.0,0.248]
[1674174597898,1.42792313,21111.0,21110.0,0.248]
[1674174598121,1.65421353,21111.0,21110.0,0.248]
[1674174598365,1.42792313,21111.0,21110.0,0.248]
[1674174599122,1.65221353,21111.0,21110.0,0.24]
[1674174600110,1.36921415,21111.0,21110.0,0.24]
[1674174600569,1.37121415,21111.0,21110.0,0.248]
[1674174601555,1.54126528,21111.0,21110.0,0.248]
[1674174601811,1.53926528,21111.0,21110.0,0.24]
[1674174602053,1.53925101,21111.0,21110.0,0.248]
[1674174602304,1.54125101,21111.0,21110.0,0.248]
[1674174603053,1.36919988,21111.0,21110.0,0.24]
[1674174603304,0.957872,21111.0,21110.0,0.248]
[1674174603559,0.949372,21111.0,21110.0,0.248]
[1674174603814,0.475686,21111.0,21110.0,0.248]
[1674174604063,0.475686,21111.0,21110.0,0.666085]
[1674174604064,0.473686,21111.0,21110.0,0.666085]
[1674174604321,0.002,21111.0,21110.0,0.248]
[1674174604568,0.49540957,21114.0,21110.0,0.24]
[1674174604829,0.49540957,21114.0,21111.0,0.3210082]
[1674174605111,0.49540957,21114.0,21112.0,0.00059387]
[1674174605347,0.49540957,21114.0,21110.0,0.93765963]
[1674174605600,0.68973054,21114.0,21110.0,0.60934679]
[1674174606348,0.49540957,21114.0,21110.0,0.60934679]
[1674174606589,0.002,21111.0,21110.0,0.61634679]
[1674174606844,0.49540957,21114.0,21110.0,0.60934679]
[1674174607128,0.49540957,21114.0,21111.0,0.40183341]
[1674174607853,0.3,21113.0,21110.0,0.24]
[1674174608116,1.44161597,21113.0,21111.0,0.018]
[1674174608363,1.247295,21113.0,21111.0,0.00060472]
[1674174608618,1.247295,21113.0,21111.0,0.003]
[1674174608869,1.247295,21113.0,21111.0,0.46226349]
[1674174609140,0.947295,21113.0,21111.0,0.46226349]
[1674174609372,0.947295,21113.0,21111.0,0.45926349]
[1674174609611,0.475654,21113.0,21111.0,0.46626349]
[1674174609863,0.473654,21113.0,21111.0,0.45926349]